fUSD/lending_fUSD_20260115
["ID","MTS","AMOUNT","RATE_DAILY","PERIOD"]
[402073000,1768507866499,-500.0,0.0003589,10]
[402073001,1768507866509,-725.03,0.0003589,10]
[402073002,1768507866518,-744.48,0.0003589,10]
[402073003,1768507866527,-500.0,0.0003589,10]
[402073004,1768507866537,-692.32,0.0003589,10]
[402073005,1768507866546,-500.0,0.0003589,10]
[402073006,1768507866555,-500.0,0.0003589,10]
[402073007,1768507866564,-1121.97,0.0003589,10]
[402073008,1768507866574,-509.81,0.0003589,10]
[402073009,1768507866583,-500.0,0.0003589,10]
[402073010,1768507866592,-530.84,0.0003589,10]
[402073011,1768507866601,-880.62,0.0003589,10]
[402073012,1768507866610,-513.91786765,0.0003589,10]
[402073013,1768507866620,-567.76,0.0003589,10]
[402073014,1768507866629,-500.0,0.0003589,10]
[402073015,1768507866638,-500.0,0.0003589,10]
[402073016,1768507866647,-500.0,0.0003589,10]
[402073017,1768507866657,-500.0,0.0003589,10]
[402073018,1768507866666,-902.4,0.0003589,10]
[402073019,1768507866675,-500.0,0.0003589,10]
[402073020,1768507866685,-500.0,0.0003589,10]
[402073021,1768507866694,-673.07,0.0003589,10]
[402073022,1768507866704,-500.0,0.0003589,10]
[402073023,1768507866713,-500.0,0.0003589,10]
[402073024,1768507866723,-500.0,0.0003589,10]
[402073025,1768507866732,-500.0,0.0003589,10]
[402073026,1768507866742,-552.24,0.0003589,10]
[402073027,1768507866751,-1031.54,0.0003589,10]
[402073028,1768507866760,-500.0,0.0003589,10]
[402073029,1768507866769,-245.04009785,0.0003589,10]
[402073030,1768507867301,-314.93990215,0.0003589,10]
[402073031,1768507867310,-1837.88,0.0003589,10]
[402073032,1768507867319,-500.0,0.0003589,10]
[402073033,1768507867329,-500.0,0.0003589,10]
[402073034,1768507867338,-500.0,0.0003589,10]
[402073035,1768507867347,-500.0,0.0003589,10]
[402073036,1768507867356,-1042.57,0.0003589,10]
[402073037,1768507867365,-823.62,0.0003589,10]
[402073038,1768507867375,-919.86,0.0003589,10]
[402073039,1768507867385,-500.0,0.0003589,10]
[402073040,1768507867394,-583.15,0.0003589,10]
[402073041,1768507867403,-500.0,0.0003589,10]
[402073042,1768507867412,-500.0,0.0003589,10]
[402073043,1768507867421,-500.0,0.0003589,10]
[402073044,1768507867431,-500.0,0.0003589,10]
[402073045,1768507867440,-500.0,0.0003589,10]
[402073046,1768507867450,-1000.05,0.0003589,10]
[402073048,1768507867459,-500.0,0.0003589,10]
[402073049,1768507867468,-500.0,0.0003589,10]
[402073050,1768507867477,-455.25295156,0.0003589,10]
[402073051,1768507867487,-500.0,0.0003589,10]
[402073052,1768507867496,-606.13,0.0003589,10]
[402073053,1768507867505,-267.35241348,0.0003589,10]
[402073054,1768507867514,-500.0,0.0003589,10]
[402073055,1768507867524,-500.0,0.0003589,10]
[402073056,1768507867533,-500.0,0.0003589,10]
[402073057,1768507867542,-500.0,0.0003589,10]
[402073058,1768507867552,-999.79,0.0003589,10]
[402073059,1768507867563,-500.0,0.0003589,10]
[402073060,1768507867573,-500.0,0.0003589,10]
[402073061,1768507867584,-500.0,0.0003589,10]
[402073062,1768507867593,-500.0,0.0003589,10]
[402073063,1768507867604,-1344.13,0.0003589,10]
[402073064,1768507867614,-860.85,0.0003589,10]
[402073065,1768507867623,-500.0,0.0003589,10]
[402073066,1768507867633,-500.0,0.0003589,10]
[402073067,1768507867644,-500.0,0.0003589,10]
[402073068,1768507867653,-500.0,0.0003589,10]
[402073069,1768507867663,-583.04,0.0003589,10]
[402073070,1768507867672,-1328.93,0.0003589,10]
[402073071,1768507867682,-3404.74,0.0003589,10]
[402073072,1768507867691,-634.21,0.0003589,10]
[402073073,1768507867700,-500.0,0.0003589,10]
[402073074,1768507867709,-593.19,0.0003589,10]
[402073075,1768507867719,-790.35,0.0003589,10]
[402073076,1768507867728,-500.0,0.0003589,10]
[402073077,1768507867738,-500.0,0.0003589,10]
[402073078,1768507867747,-780.3,0.0003589,10]
[402073079,1768507867757,-762.91,0.0003589,10]
[402073080,1768507867767,-1264.21,0.0003589,10]
[402073081,1768507867776,-500.0,0.0003589,10]
[402073082,1768507867785,-500.0,0.0003589,10]
[402073083,1768507867795,-500.0,0.0003589,10]
[402073084,1768507867805,-1634.25,0.0003589,10]
[402073085,1768507867815,-595.62753893,0.0003589,10]
[402073086,1768507867825,-597.14,0.0003589,10]
[402073087,1768507867834,-500.0,0.0003589,10]
[402073088,1768507867844,-637.23,0.0003589,10]
[402073089,1768507867854,-772.88,0.0003589,10]
[402073090,1768507867864,-715.37,0.0003589,10]
[402073091,1768507867875,-1997.0,0.0003589,10]
[402073092,1768507867884,-500.0,0.0003589,10]
[402073093,1768507867895,-500.0,0.0003589,10]
[402073094,1768507867905,-553.38,0.0003589,10]
[402073095,1768507867915,-500.0,0.0003589,10]
[402073096,1768507867924,-687.76,0.0003589,10]
[402073097,1768507867934,-500.0,0.0003589,10]
[402073098,1768507867944,-500.0,0.0003589,10]
[402073099,1768507867954,-500.0,0.0003589,10]
[402073100,1768507867964,-500.0,0.0003589,10]
[402073101,1768507867974,-500.0,0.0003589,10]
[402073102,1768507867984,-1448.84,0.0003589,10]
[402073103,1768507867993,-500.0,0.0003589,10]
[402073104,1768507868003,-579.74,0.0003589,10]
[402073105,1768507868013,-1084.74,0.0003589,10]
[402073106,1768507868023,-500.0,0.0003589,10]
[402073107,1768507868033,-500.0,0.0003589,10]
[402073108,1768507868043,-500.0,0.0003589,10]
[402073109,1768507868052,-500.0,0.0003589,10]
[402073110,1768507868062,-500.0,0.0003589,10]
[402073111,1768507868072,-500.0,0.0003589,10]
[402073112,1768507868083,-500.0,0.0003589,10]
[402073113,1768507868100,-500.0,0.0003589,10]
[402073114,1768507868110,-500.0,0.0003589,10]
[402073115,1768507868119,-640.7,0.0003589,10]
[402073116,1768507868131,-637.73,0.0003589,10]
[402073117,1768507868141,-500.0,0.0003589,10]
[402073118,1768507868150,-500.0,0.0003589,10]
[402073119,1768507868162,-500.0,0.0003589,10]
[402073120,1768507868172,-500.0,0.0003589,10]
[402073121,1768507868182,-546.47,0.0003589,10]
[402073122,1768507868192,-1484.39,0.0003589,10]
[402073123,1768507868202,-1240.8,0.0003589,10]
[402073124,1768507868213,-500.0,0.0003589,10]
[402073125,1768507868223,-500.0,0.0003589,10]
[402073126,1768507868233,-500.0,0.0003589,10]
[402073127,1768507868243,-500.0,0.0003589,10]
[402073128,1768507868253,-1097.66,0.0003589,10]
[402073129,1768507868263,-973.31,0.0003589,10]
[402073130,1768507868273,-500.0,0.0003589,10]
[402073131,1768507868283,-500.0,0.0003589,10]
[402073132,1768507868292,-642.98259737,0.0003589,10]
[402073133,1768507868302,-500.0,0.0003589,10]
[402073134,1768507868312,-603.77,0.0003589,10]
[402073135,1768507868321,-500.0,0.0003589,10]
[402073136,1768507868330,-399.8710917,0.0003589,10]
[402073137,1768507868340,-500.0,0.0003589,10]
[402073138,1768507868350,-821.16,0.0003589,10]
[402073139,1768507868360,-633.67,0.0003589,10]
[402073140,1768507868369,-588.14,0.0003589,10]
[402073141,1768507868380,-526.35,0.0003589,10]
[402073142,1768507868389,-1049.9,0.0003589,10]
[402073143,1768507868399,-500.0,0.0003589,10]
[402073144,1768507868410,-549.69,0.0003589,10]
[402073145,1768507868420,-508.88603474,0.0003589,10]
[402073146,1768507868430,-500.0,0.0003589,10]
[402073147,1768507868440,-500.0,0.0003589,10]
[402073148,1768507868450,-500.0,0.0003589,10]
[402073149,1768507868460,-500.0,0.0003589,10]
[402073150,1768507868470,-500.0,0.0003589,10]
[402073151,1768507868480,-500.0,0.0003589,10]
[402073152,1768507868489,-500.0,0.0003589,10]
[402073153,1768507868499,-500.0,0.0003589,10]
[402073154,1768507868509,-500.0,0.0003589,10]
[402073155,1768507868519,-628.28,0.0003589,10]
[402073156,1768507868528,-626.5,0.0003589,10]
[402073157,1768507868539,-1079.85,0.0003589,10]
[402073158,1768507868548,-837.86,0.0003589,10]
[402073159,1768507868558,-324.93792492,0.0003589,10]
[402073160,1768507868568,-980.97,0.0003589,10]
[402073161,1768507868578,-500.0,0.0003589,10]
[402073162,1768507868587,-1331.99,0.0003589,10]
[402073163,1768507868597,-500.0,0.0003589,10]
[402073164,1768507868607,-500.0,0.0003589,10]
[402073165,1768507868616,-1398.1,0.0003589,10]
[402073166,1768507868626,-500.0,0.0003589,10]
[402073167,1768507868636,-500.0,0.0003589,10]
[402073168,1768507868646,-500.0,0.0003589,10]
[402073169,1768507868656,-771.85,0.0003589,10]
[402073170,1768507868666,-500.0,0.0003589,10]
[402073171,1768507868675,-639.98,0.0003589,10]
[402073172,1768507868685,-1480.32,0.0003589,10]
[402073173,1768507868695,-500.0,0.0003589,10]
[402073174,1768507868705,-580.48121463,0.0003589,10]
[402073175,1768507868715,-468.59950305,0.0003589,10]
[402073176,1768507868725,-500.0,0.0003589,10]
[402073177,1768507868734,-525.87,0.0003589,10]
[402073178,1768507868744,-1161.08,0.0003589,10]
[402073179,1768507868754,-838.05,0.0003589,10]
[402073180,1768507868764,-500.0,0.0003589,10]
[402073181,1768507868774,-500.0,0.0003589,120]
[402073182,1768507868784,-2994.73,0.0003589,10]
[402073183,1768507868793,-887.63,0.0003589,10]
[402073184,1768507868803,-548.92,0.0003589,10]
[402073185,1768507868812,-500.0,0.0003589,10]
[402073186,1768507868822,-1132.08,0.0003589,10]
[402073187,1768507868832,-655.51,0.0003589,10]
[402073188,1768507868842,-500.0,0.0003589,10]
[402073189,1768507868852,-1293.43,0.0003589,10]
[402073190,1768507868862,-502.53,0.0003589,10]
[402073191,1768507868872,-1239.54,0.0003589,10]
[402073192,1768507868882,-899.07,0.0003589,10]
[402073193,1768507868892,-500.0,0.0003589,10]
[402073194,1768507868902,-420.26949539,0.0003589,10]
[402073195,1768507868912,-500.0,0.0003589,10]
[402073196,1768507868922,-500.0,0.0003589,10]
[402073197,1768507868932,-500.0,0.0003589,10]
[402073198,1768507868943,-500.0,0.0003589,10]
[402073199,1768507868953,-500.0,0.0003589,10]
[402073200,1768507868963,-1040.2,0.0003589,10]
[402073201,1768507868973,-500.0,0.0003589,10]
[402073202,1768507868983,-500.0,0.0003589,10]
[402073203,1768507868994,-500.0,0.0003589,10]
[402073204,1768507869003,-500.0,0.0003589,10]
[402073205,1768507869013,-1777.61,0.0003589,10]
[402073206,1768507869024,-500.0,0.0003589,10]
[402073207,1768507869034,-380.80252805,0.0003589,10]
[402073208,1768507869045,-500.0,0.0003589,10]
[402073209,1768507869060,-504.43284882,0.0003589,10]
[402073210,1768507869070,-902.63,0.0003589,10]
[402073211,1768507869082,-1329.01,0.0003589,10]
[402073212,1768507869095,-500.0,0.0003589,10]
[402073213,1768507869106,-1124.73,0.0003589,10]
[402073214,1768507869116,-500.0,0.0003589,10]
[402073215,1768507869128,-500.0,0.0003589,10]
[402073216,1768507869139,-610.16936195,0.0003589,10]
[402073217,1768507869151,-500.0,0.0003589,10]
[402073218,1768507869163,-500.0,0.0003589,10]
[402073219,1768507869174,-500.0,0.0003589,10]
[402073220,1768507869185,-1790.52,0.0003589,10]
[402073221,1768507869196,-500.0,0.0003589,10]
[402073222,1768507869208,-506.22,0.0003589,10]
[402073223,1768507869220,-500.0,0.0003589,10]
[402073224,1768507869230,-2734.86,0.0003589,10]
[402073225,1768507869243,-500.0,0.0003589,10]
[402073226,1768507869255,-2078.68,0.0003589,10]
[402073227,1768507869266,-682.0,0.0003589,10]
[402073228,1768507869276,-573.95,0.0003589,10]
[402073229,1768507869287,-1177.72,0.0003589,10]
[402073230,1768507869297,-799.97,0.0003589,10]
[402073231,1768507869308,-500.0,0.0003589,10]
[402073232,1768507869318,-500.0,0.0003589,10]
[402073233,1768507869328,-1030.52,0.0003589,10]
[402073234,1768507869338,-548.7,0.0003589,10]
[402073235,1768507869347,-500.0,0.0003589,10]
[402073236,1768507869357,-500.0,0.0003589,10]
[402073237,1768507869367,-500.0,0.0003589,10]
[402073238,1768507869376,-511.1608223,0.0003589,10]
[402073239,1768507869386,-941.71,0.0003589,10]
[402073240,1768507869395,-1004.46,0.0003589,10]
[402073241,1768507869405,-500.0,0.0003589,10]
[402073242,1768507869415,-500.0,0.0003589,10]
[402073243,1768507869429,-500.0,0.0003589,10]
[402073244,1768507869439,-500.0,0.0003589,10]
[402073245,1768507869449,-500.0,0.0003589,10]
[402073246,1768507869461,-4525.94,0.0003589,10]
[402073247,1768507869471,-791.78,0.0003589,10]
[402073248,1768507869482,-500.0,0.0003589,10]
[402073249,1768507869492,-500.0,0.0003589,10]
[402073250,1768507869502,-500.0,0.0003589,10]
[402073251,1768507869513,-572.1,0.0003589,10]
[402073252,1768507869523,-713.0,0.0003589,10]
[402073253,1768507869533,-364.90266623,0.0003589,10]
[402073254,1768507869544,-545.05,0.0003589,10]
[402073255,1768507869553,-640.85,0.0003589,10]
[402073256,1768507869563,-500.0,0.0003589,10]
[402073257,1768507869573,-500.0,0.0003589,10]
[402073258,1768507869583,-751.0,0.0003589,10]
[402073259,1768507869594,-500.0,0.0003589,10]
[402073260,1768507869604,-1093.44,0.0003589,10]
[402073261,1768507869614,-617.24,0.0003589,10]
[402073262,1768507869624,-507.09,0.0003589,10]
[402073263,1768507869634,-802.41,0.0003589,10]
[402073264,1768507869644,-515.47658434,0.0003589,10]
[402073265,1768507869654,-1894.16,0.0003589,10]
[402073266,1768507869664,-500.0,0.0003589,10]
[402073267,1768507869674,-816.36,0.0003589,10]
[402073268,1768507869684,-500.0,0.0003589,10]
[402073269,1768507869694,-1118.71,0.0003589,10]
[402073270,1768507869704,-500.0,0.0003589,10]
[402073271,1768507869714,-500.0,0.0003589,10]
[402073272,1768507869724,-599.19,0.0003589,10]
[402073273,1768507869735,-622.97900338,0.0003589,10]
[402073274,1768507869744,-1549.06,0.0003589,10]
[402073275,1768507869755,-500.0,0.0003589,10]
[402073276,1768507869764,-877.07,0.0003589,10]
[402073277,1768507869774,-500.0,0.0003589,10]
[402073278,1768507869783,-500.0,0.0003589,10]
[402073279,1768507869796,-500.0,0.0003589,10]
[402073280,1768507869806,-1992.55,0.0003589,10]
[402073281,1768507869817,-500.0,0.0003589,10]
[402073282,1768507869827,-500.0,0.0003589,10]
[402073283,1768507869837,-1695.2,0.0003589,10]
[402073284,1768507869848,-1213.64,0.0003589,10]
[402073285,1768507870214,-500.0,0.0003589,10]
[402073286,1768507870245,-499.14178738,0.0003589,10]
[402073287,1768507870254,-607.94,0.0003589,10]
[402073288,1768507870263,-739.72,0.0003589,10]
[402073289,1768507870273,-500.0,0.0003589,10]
[402073290,1768507870282,-500.0,0.0003589,10]
[402073291,1768507870291,-500.0,0.0003589,10]
[402073292,1768507870301,-559.05,0.0003589,10]
[402073293,1768507870310,-500.0,0.0003589,10]
[402073294,1768507870319,-500.0,0.0003589,10]
[402073295,1768507870329,-500.0,0.0003589,10]
[402073296,1768507870338,-500.0,0.0003589,10]
[402073297,1768507870347,-838.02,0.0003589,10]
[402073298,1768507870357,-1886.05,0.0003589,10]
[402073299,1768507870366,-666.16,0.0003589,10]
[402073300,1768507870376,-500.0,0.0003589,10]
[402073301,1768507870386,-3808.11,0.0003589,10]
[402073302,1768507870395,-1403.97,0.0003589,10]
[402073303,1768507870404,-500.0,0.0003589,10]
[402073304,1768507870414,-500.0,0.0003589,10]
[402073305,1768507870423,-555.6,0.0003589,10]
[402073306,1768507870432,-500.0,0.0003589,10]
[402073307,1768507870441,-500.0,0.0003589,10]
[402073308,1768507870451,-500.0,0.0003589,10]
[402073309,1768507870460,-500.0,0.0003589,10]
[402073310,1768507870470,-219.85479498,0.0003589,10]
[402073311,1768507870479,-500.0,0.0003589,10]
[402073312,1768507870489,-500.0,0.0003589,10]
[402073313,1768507870498,-500.0,0.0003589,10]
[402073314,1768507870508,-500.0,0.0003589,10]
[402073315,1768507870517,-1279.89,0.0003589,10]
[402073316,1768507870526,-500.0,0.0003589,10]
[402073317,1768507870536,-500.0,0.0003589,10]
[402073318,1768507870545,-500.0,0.0003589,10]
[402073319,1768507870554,-1469.69,0.0003589,10]
[402073320,1768507870563,-500.0,0.0003589,10]
[402073321,1768507870573,-2084.21,0.0003589,10]
[402073322,1768507870582,-500.0,0.0003589,10]
[402073323,1768507870591,-500.0,0.0003589,10]
[402073324,1768507870601,-500.0,0.0003589,10]
[402073325,1768507870611,-818.89,0.0003589,10]
[402073326,1768507870620,-916.39,0.0003589,10]
[402073327,1768507870630,-500.0,0.0003589,10]
[402073328,1768507870640,-500.0,0.0003589,10]
[402073329,1768507870649,-500.0,0.0003589,10]
[402073330,1768507870659,-243.06269748,0.0003589,10]
[402073331,1768507870669,-500.0,0.0003589,10]
[402073332,1768507870679,-500.0,0.0003589,10]
[402073333,1768507870689,-1930.51,0.0003589,10]
[402073334,1768507870698,-653.49,0.0003589,10]
[402073335,1768507870708,-819.44,0.0003589,10]
[402073336,1768507870717,-500.0,0.0003589,10]
[402073337,1768507870726,-500.0,0.0003589,10]
[402073338,1768507870736,-1459.76,0.0003589,10]
[402073339,1768507870745,-576.45,0.0003589,10]
[402073340,1768507870754,-500.0,0.0003589,10]
[402073341,1768507870763,-500.0,0.0003589,10]
[402073342,1768507870773,-1210.08,0.0003589,10]
[402073343,1768507870782,-559.15138138,0.0003589,10]
[402073344,1768507870792,-1095.45,0.0003589,10]
[402073345,1768507870801,-1557.88,0.0003589,10]
[402073346,1768507870810,-501.21,0.0003589,10]
[402073347,1768507870820,-1004.14,0.0003589,10]
[402073348,1768507870829,-185.53811782,0.0003589,10]
[402073349,1768507870838,-927.77,0.0003589,10]
[402073350,1768507870848,-500.0,0.0003589,10]
[402073351,1768507870857,-9753.38,0.0003589,10]
[402073352,1768507870867,-685.54,0.0003589,10]
[402073353,1768507870877,-500.0,0.0003589,10]
[402073354,1768507870886,-563.54,0.0003589,10]
[402073355,1768507870895,-1890.94,0.0003589,10]
[402073356,1768507870905,-500.0,0.0003589,10]
[402073357,1768507870915,-2004.88,0.0003589,10]
[402073358,1768507870924,-500.0,0.0003589,10]
[402073359,1768507870933,-500.0,0.0003589,10]
[402073360,1768507870943,-1772.09,0.0003589,10]
[402073361,1768507870952,-514.88,0.0003589,10]
[402073362,1768507870963,-500.0,0.0003589,10]
[402073363,1768507870973,-2822.21,0.0003589,10]
[402073364,1768507870983,-500.0,0.0003589,10]
[402073365,1768507870992,-1109.41,0.0003589,10]
[402073366,1768507871001,-653.97,0.0003589,10]
[402073367,1768507871011,-502.93,0.0003589,10]
[402073368,1768507871020,-500.0,0.0003589,10]
[402073369,1768507871029,-1541.52,0.0003589,10]
[402073370,1768507871039,-500.0,0.0003589,10]
[402073371,1768507871048,-500.0,0.0003589,10]
[402073372,1768507871058,-991.25,0.0003589,10]
[402073373,1768507871067,-500.0,0.0003589,10]
[402073374,1768507871076,-500.0,0.0003589,10]
[402073375,1768507871088,-500.0,0.0003589,10]
[402073376,1768507871098,-500.0,0.0003589,10]
[402073377,1768507871108,-500.0,0.0003589,10]
[402073378,1768507871118,-1883.29,0.0003589,10]
[402073379,1768507871128,-599.29,0.0003589,10]
[402073380,1768507871138,-607.44,0.0003589,10]
[402073381,1768507871147,-646.69140139,0.0003589,10]
[402073382,1768507871158,-500.0,0.0003589,10]
[402073383,1768507871167,-500.0,0.0003589,10]
[402073384,1768507871176,-902.34,0.0003589,10]
[402073385,1768507871185,-822.09,0.0003589,10]
[402073386,1768507871195,-1306.75,0.0003589,10]
[402073387,1768507871204,-500.0,0.0003589,10]
[402073388,1768507871214,-500.0,0.0003589,10]
[402073389,1768507871223,-1363.24,0.0003589,10]
[402073390,1768507871233,-1493.74,0.0003589,10]
[402073391,1768507871242,-544.46,0.0003589,10]
[402073392,1768507871251,-1554.74,0.0003589,10]
[402073393,1768507871261,-500.0,0.0003589,10]
[402073394,1768507871271,-500.0,0.0003589,10]
[402073395,1768507871281,-907.43,0.0003589,10]
[402073396,1768507871290,-500.0,0.0003589,10]
[402073397,1768507871300,-500.0,0.0003589,10]
[402073398,1768507871309,-741.09,0.0003589,10]
[402073399,1768507871318,-500.0,0.0003589,10]
[402073400,1768507871328,-764.0,0.0003589,10]
[402073401,1768507871337,-1815.78,0.0003589,10]
[402073402,1768507871346,-500.0,0.0003589,10]
[402073403,1768507871355,-3188.19,0.0003589,10]
[402073404,1768507871364,-2497.75,0.0003589,10]
[402073405,1768507871374,-500.0,0.0003589,10]
[402073406,1768507871383,-1579.75,0.0003589,10]
[402073407,1768507871392,-1111.93,0.0003589,10]
[402073408,1768507871401,-500.0,0.0003589,10]
[402073409,1768507871411,-1140.38,0.0003589,10]
[402073410,1768507871420,-625.5,0.0003589,10]
[402073411,1768507871430,-799.43,0.0003589,10]
[402073412,1768507871439,-500.0,0.0003589,10]
[402073413,1768507871448,-500.0,0.0003589,10]
[402073414,1768507871458,-548.91493919,0.0003589,10]
[402073415,1768507871468,-839.5,0.0003589,10]
[402073416,1768507871478,-500.0,0.0003589,10]
[402073417,1768507871487,-500.0,0.0003589,10]
[402073418,1768507871496,-1003.07,0.0003589,10]
[402073419,1768507871506,-500.0,0.0003589,10]
[402073420,1768507871515,-582.51,0.0003589,10]
[402073421,1768507871525,-500.0,0.0003589,10]
[402073422,1768507871534,-500.0,0.0003589,10]
[402073423,1768507871544,-500.0,0.0003589,10]
[402073424,1768507871553,-500.0,0.0003589,10]
[402073425,1768507871562,-500.0,0.0003589,10]
[402073426,1768507871572,-1947.55,0.0003589,10]
[402073427,1768507871581,-500.0,0.0003589,10]
[402073428,1768507871590,-500.0,0.0003589,10]
[402073429,1768507871600,-500.0,0.0003589,10]
[402073430,1768507871610,-500.0,0.0003589,10]
[402073431,1768507871619,-1220.86,0.0003589,10]
[402073432,1768507871628,-500.0,0.0003589,10]
[402073433,1768507871638,-500.0,0.0003589,10]
[402073434,1768507871647,-500.0,0.0003589,10]
[402073435,1768507871656,-1212.65,0.0003589,10]
[402073436,1768507871665,-500.0,0.0003589,10]
[402073437,1768507871675,-966.88,0.0003589,10]
[402073438,1768507871684,-500.0,0.0003589,10]
[402073439,1768507871694,-500.0,0.0003589,10]
[402073440,1768507871703,-500.0,0.0003589,10]
[402073441,1768507871713,-502.59740436,0.0003589,10]
[402073442,1768507871722,-500.0,0.0003589,10]
[402073443,1768507871731,-500.0,0.0003589,10]
[402073444,1768507871741,-520.98316479,0.0003589,10]
[402073445,1768507871751,-500.0,0.0003589,10]
[402073446,1768507871760,-2666.19,0.0003589,10]
[402073447,1768507871769,-500.0,0.0003589,10]
[402073448,1768507871781,-500.0,0.0003589,10]
[402073449,1768507871790,-2248.41,0.0003589,10]
[402073450,1768507871800,-1387.09,0.0003589,10]
[402073451,1768507871809,-995.01,0.0003589,10]
[402073452,1768507871819,-3043.23,0.0003589,10]
[402073453,1768507871827,-3392.42,0.0003589,10]
[402073454,1768507871836,-500.0,0.0003589,10]
[402073455,1768507871846,-500.0,0.0003589,10]
[402073456,1768507871855,-500.0,0.0003589,10]
[402073457,1768507871865,-500.0,0.0003589,10]
[402073458,1768507871874,-500.0,0.0003589,10]
[402073459,1768507871884,-599.18,0.0003589,10]
[402073460,1768507871894,-1018.31,0.0003589,10]
[402073461,1768507871903,-500.0,0.0003589,10]
[402073462,1768507871912,-500.0,0.0003589,10]
[402073463,1768507871922,-500.0,0.0003589,10]
[402073464,1768507871931,-500.0,0.0003589,10]
[402073465,1768507871941,-500.0,0.0003589,10]
[402073466,1768507871950,-512.75,0.0003589,10]
[402073467,1768507871960,-500.0,0.0003589,10]
[402073468,1768507871969,-500.0,0.0003589,10]
[402073469,1768507871979,-500.0,0.0003589,10]
[402073470,1768507871989,-973.66,0.0003589,10]
[402073471,1768507871998,-422.7504207,0.0003589,10]
[402073472,1768507872007,-756.96,0.0003589,10]
[402073473,1768507872018,-1198.69,0.0003589,10]
[402073474,1768507872028,-2299.0,0.0003589,10]
[402073475,1768507872038,-500.0,0.0003589,10]
[402073476,1768507872047,-884.19,0.0003589,10]
[402073477,1768507872056,-1448.28,0.0003589,10]
[402073478,1768507872066,-630.74,0.0003589,10]
[402073479,1768507872075,-500.0,0.0003589,10]
[402073480,1768507872092,-1516.89,0.0003589,10]
[402073481,1768507872101,-500.0,0.0003589,2]
[402073482,1768507872111,-1129.07,0.0003589,10]
[402073483,1768507872120,-500.0,0.0003589,10]
[402073484,1768507872131,-889.4,0.0003589,10]
[402073485,1768507872140,-500.0,0.0003589,10]
[402073486,1768507872150,-500.0,0.0003589,10]
[402073487,1768507872159,-929.92,0.0003589,10]
[402073488,1768507872168,-500.0,0.0003589,10]
[402073489,1768507872177,-500.0,0.0003589,10]
[402073490,1768507872187,-1280.23,0.0003589,10]
[402073491,1768507872196,-500.0,0.0003589,10]
[402073492,1768507872205,-500.0,0.0003589,10]
[402073493,1768507872214,-669.6,0.0003589,10]
[402073494,1768507872223,-500.0,0.0003589,10]
[402073495,1768507872232,-760.23,0.0003589,10]
[402073496,1768507872241,-535.72,0.0003589,10]
[402073497,1768507872251,-500.0,0.0003589,10]
[402073498,1768507872260,-500.0,0.0003589,10]
[402073499,1768507872269,-2116.27,0.0003589,10]
[402073500,1768507872278,-868.65,0.0003589,10]